[Event "*** Titled Tuesday Blitz"]
[Site "Chess.com"]
[Date "2018.12.04"]
[Round "7"]
[White "Karina_Oparina"]
[Black "WorldChampionBulletChess"]
[Result "0-1"]
[WhiteElo "2104"]
[BlackElo "2122"]
[TimeControl "180+2"]
[EndTime "14:38:56 PST"]
[Termination "WorldChampionBulletChess won by checkmate"]

1. Nf3 {[%clk 0:02:51.6]} 1... d5 {[%clk 0:02:59.8]} 2. g3 {[%clk 0:02:52.2]}
2... c5 {[%clk 0:02:59.2]} 3. c4 {[%clk 0:02:49.6]} 3... d4 {[%clk 0:02:54.2]}
4. d3 {[%clk 0:02:49.4]} 4... Nc6 {[%clk 0:02:55.3]} 5. Bg2 {[%clk 0:02:50.5]}
5... Nf6 {[%clk 0:02:54.5]} 6. O-O {[%clk 0:02:50.9]} 6... Bg4 {[%clk
0:02:51.4]} 7. e4 {[%clk 0:02:48.2]} 7... dxe3 {[%clk 0:02:51.3]} 8. Bxe3 {[%clk
0:02:38.4]} 8... e5 {[%clk 0:02:47.4]} 9. h3 {[%clk 0:02:36.7]} 9... Bh5 {[%clk
0:02:47.3]} 10. Nc3 {[%clk 0:02:34.7]} 10... Be7 {[%clk 0:02:41.4]} 11. Ne4
{[%clk 0:02:24.9]} 11... Nd4 {[%clk 0:02:34]} 12. g4 {[%clk 0:02:16.4]} 12...
Bg6 {[%clk 0:02:09.8]} 13. Nxe5 {[%clk 0:02:12.6]} 13... O-O {[%clk 0:00:55.4]}
14. Nxg6 {[%clk 0:02:02.5]} 14... hxg6 {[%clk 0:00:57.3]} 15. Nxf6+ {[%clk
0:02:02.4]} 15... Bxf6 {[%clk 0:00:58.1]} 16. Qd2 {[%clk 0:01:50.4]} 16... Re8
{[%clk 0:00:50.6]} 17. Rad1 {[%clk 0:01:43.8]} 17... Qd7 {[%clk 0:00:48.2]} 18.
Rfe1 {[%clk 0:01:35.2]} 18... Rad8 {[%clk 0:00:34.1]} 19. b3 {[%clk 0:01:18.6]}
19... b6 {[%clk 0:00:33.8]} 20. f4 {[%clk 0:01:11.5]} 20... Re7 {[%clk
0:00:34.2]} 21. Bf2 {[%clk 0:01:07.2]} 21... Rxe1+ {[%clk 0:00:33.9]} 22. Rxe1
{[%clk 0:01:05.9]} 22... b5 {[%clk 0:00:32.5]} 23. g5 {[%clk 0:00:57.5]} 23...
Be7 {[%clk 0:00:33.2]} 24. Kh2 {[%clk 0:00:48.5]} 24... Nf5 {[%clk 0:00:29.6]}
25. Be4 {[%clk 0:00:43.8]} 25... Bd6 {[%clk 0:00:29.9]} 26. Bg3 {[%clk
0:00:37.9]} 26... Nd4 {[%clk 0:00:28.7]} 27. Kg2 {[%clk 0:00:35.8]} 27... Qc7
{[%clk 0:00:29.9]} 28. Qf2 {[%clk 0:00:30.7]} 28... a6 {[%clk 0:00:28.9]} 29.
Bd5 {[%clk 0:00:26.2]} 29... Nf5 {[%clk 0:00:26]} 30. Bh2 {[%clk 0:00:23]} 30...
b4 {[%clk 0:00:23.7]} 31. Qf3 {[%clk 0:00:18.6]} 31... a5 {[%clk 0:00:24.3]} 32.
Qf2 {[%clk 0:00:17.2]} 32... Qd7 {[%clk 0:00:24.2]} 33. Re4 {[%clk 0:00:15.5]}
33... a4 {[%clk 0:00:24.5]} 34. Re1 {[%clk 0:00:15.7]} 34... axb3 {[%clk
0:00:25.3]} 35. axb3 {[%clk 0:00:16.7]} 35... Nd4 {[%clk 0:00:27.2]} 36. Rb1
{[%clk 0:00:14.2]} 36... Qf5 {[%clk 0:00:27.8]} 37. Be4 {[%clk 0:00:15]} 37...
Qc8 {[%clk 0:00:28]} 38. Rb2 {[%clk 0:00:13.8]} 38... Qb8 {[%clk 0:00:28.6]} 39.
Bd5 {[%clk 0:00:13.6]} 39... Nf5 {[%clk 0:00:28.8]} 40. Bg3 {[%clk 0:00:13.1]}
40... Qa7 {[%clk 0:00:29.2]} 41. Ra2 {[%clk 0:00:13.4]} 41... Qe7 {[%clk
0:00:29.8]} 42. Qe2 {[%clk 0:00:12.8]} 42... Qc7 {[%clk 0:00:30.9]} 43. Qe4
{[%clk 0:00:12.3]} 43... Qd7 {[%clk 0:00:26]} 44. Bf2 {[%clk 0:00:10.5]} 44...
Re8 {[%clk 0:00:26.8]} 45. Qf3 {[%clk 0:00:11.5]} 45... Qc7 {[%clk 0:00:26.2]}
46. Ra6 {[%clk 0:00:09.5]} 46... Bxf4 {[%clk 0:00:25.1]} 47. Rxg6 {[%clk
0:00:08.3]} 47... Be3 {[%clk 0:00:21.7]} 48. Rc6 {[%clk 0:00:08.3]} 48... Bxf2
{[%clk 0:00:20.1]} 49. Qxf5 {[%clk 0:00:06.1]} 49... Qg3+ {[%clk 0:00:20]} 50.
Kf1 {[%clk 0:00:04.6]} 50... Qg1# {[%clk 0:00:21]} 0-1

[Event "*** Titled Tuesday Blitz"]
[Site "Chess.com"]
[Date "2018.12.04"]
[Round "7"]
[White "DishonorOnYourCow"]
[Black "Godzillator"]
[Result "0-1"]
[WhiteElo "2229"]
[BlackElo "2367"]
[TimeControl "180+2"]
[EndTime "14:39:02 PST"]
[Termination "Godzillator won on time"]

1. d4 {[%clk 0:03:00.5]} 1... d5 {[%clk 0:03:00.6]} 2. c4 {[%clk 0:03:01.5]}
2... c6 {[%clk 0:03:01.7]} 3. cxd5 {[%clk 0:03:01.2]} 3... cxd5 {[%clk
0:03:01.9]} 4. Nf3 {[%clk 0:03:03.1]} 4... Nf6 {[%clk 0:03:02.5]} 5. Bf4 {[%clk
0:03:03.3]} 5... a6 {[%clk 0:03:03.4]} 6. Nc3 {[%clk 0:03:04.4]} 6... Nc6 {[%clk
0:03:02]} 7. e3 {[%clk 0:03:05.7]} 7... Bg4 {[%clk 0:03:02.4]} 8. Bd3 {[%clk
0:03:06.5]} 8... Bxf3 {[%clk 0:02:58.5]} 9. Qxf3 {[%clk 0:03:07.1]} 9... e6
{[%clk 0:02:59.8]} 10. O-O {[%clk 0:03:07.7]} 10... Bd6 {[%clk 0:03:01]} 11.
Rac1 {[%clk 0:03:06.4]} 11... Bxf4 {[%clk 0:03:01.4]} 12. Qxf4 {[%clk
0:03:06.8]} 12... O-O {[%clk 0:03:02]} 13. Na4 {[%clk 0:02:48.7]} 13... Nd7
{[%clk 0:03:00.9]} 14. Qf3 {[%clk 0:02:41.2]} 14... Qa5 {[%clk 0:02:54.5]} 15.
b3 {[%clk 0:02:24.2]} 15... Rfc8 {[%clk 0:02:53]} 16. Qh5 {[%clk 0:02:21.7]}
16... g6 {[%clk 0:02:53.5]} 17. Qe2 {[%clk 0:02:21.6]} 17... b5 {[%clk
0:02:51.1]} 18. Nc5 {[%clk 0:02:22.3]} 18... Nxc5 {[%clk 0:02:49.1]} 19. Rxc5
{[%clk 0:02:23.3]} 19... Nb4 {[%clk 0:02:50.1]} 20. Bb1 {[%clk 0:02:06.1]} 20...
Rxc5 {[%clk 0:02:47]} 21. dxc5 {[%clk 0:02:06.9]} 21... Rc8 {[%clk 0:02:48.2]}
22. Rc1 {[%clk 0:02:07.9]} 22... Qa3 {[%clk 0:02:40.5]} 23. Qd2 {[%clk
0:01:48.6]} 23... Rc6 {[%clk 0:02:27.5]} 24. h3 {[%clk 0:01:41.7]} 24... h5
{[%clk 0:02:27.4]} 25. e4 {[%clk 0:01:41]} 25... dxe4 {[%clk 0:02:23.2]} 26.
Bxe4 {[%clk 0:01:41.4]} 26... Rc8 {[%clk 0:02:21.1]} 27. c6 {[%clk 0:01:32.9]}
27... Nd5 {[%clk 0:02:09.3]} 28. Bxd5 {[%clk 0:01:22.7]} 28... exd5 {[%clk
0:02:10.3]} 29. c7 {[%clk 0:01:23]} 29... Qd6 {[%clk 0:02:11.1]} 30. Qc2 {[%clk
0:01:20.8]} 30... d4 {[%clk 0:02:11.9]} 31. Qe4 {[%clk 0:00:52.9]} 31... d3
{[%clk 0:02:06.6]} 32. Rd1 {[%clk 0:00:52.5]} 32... Rxc7 {[%clk 0:02:04]} 33.
Qxd3 {[%clk 0:00:45.4]} 33... Qxd3 {[%clk 0:02:03.3]} 34. Rxd3 {[%clk
0:00:46.3]} 34... Rc2 {[%clk 0:02:04.5]} 35. a4 {[%clk 0:00:46.7]} 35... bxa4
{[%clk 0:02:04.5]} 36. bxa4 {[%clk 0:00:46.7]} 36... Rc4 {[%clk 0:02:05.2]} 37.
Ra3 {[%clk 0:00:45.5]} 37... Rc1+ {[%clk 0:02:02]} 38. Kh2 {[%clk 0:00:46.2]}
38... h4 {[%clk 0:02:03.2]} 39. g3 {[%clk 0:00:38.3]} 39... Rc4 {[%clk
0:01:53.9]} 40. Kg2 {[%clk 0:00:38.4]} 40... Kg7 {[%clk 0:01:52.8]} 41. Kf3
{[%clk 0:00:39]} 41... hxg3 {[%clk 0:01:51.6]} 42. fxg3 {[%clk 0:00:39.6]} 42...
a5 {[%clk 0:01:52.8]} 43. Ke3 {[%clk 0:00:38.4]} 43... f5 {[%clk 0:01:51.5]} 44.
Kd3 {[%clk 0:00:34.8]} 44... Rb4 {[%clk 0:01:52.7]} 45. Ke3 {[%clk 0:00:36]}
45... g5 {[%clk 0:01:52.9]} 46. Kf3 {[%clk 0:00:37.1]} 46... Kg6 {[%clk
0:01:53.6]} 47. Ke3 {[%clk 0:00:35.1]} 47... f4+ {[%clk 0:01:47.3]} 48. gxf4
{[%clk 0:00:35.8]} 48... Rxf4 {[%clk 0:01:47.7]} 49. Ra1 {[%clk 0:00:31.2]}
49... Kh5 {[%clk 0:01:48.4]} 50. Ra2 {[%clk 0:00:06.6]} 50... Kh4 {[%clk
0:01:45.2]} 51. Ra1 {[%clk 0:00:06.6]} 51... Kxh3 {[%clk 0:01:44.8]} 52. Rh1+
{[%clk 0:00:07.8]} 52... Kg2 {[%clk 0:01:42.9]} 53. Rh5 {[%clk 0:00:08.3]} 53...
Rf5 {[%clk 0:01:43.5]} 54. Ke4 {[%clk 0:00:08.6]} 54... Rc5 {[%clk 0:01:43.9]}
55. Kd4 {[%clk 0:00:04.9]} 55... Rf5 {[%clk 0:01:41.9]} 56. Ke4 {[%clk
0:00:06.1]} 56... Rf4+ {[%clk 0:01:40.4]} 57. Ke3 {[%clk 0:00:07.3]} 57... Rg4
{[%clk 0:01:41.1]} 58. Rh8 {[%clk 0:00:06]} 58... Rxa4 {[%clk 0:01:38.6]} 59.
Rg8 {[%clk 0:00:06.6]} 59... g4 {[%clk 0:01:38.9]} 60. Ra8 {[%clk 0:00:06.4]}
60... g3 {[%clk 0:01:39.6]} 61. Rb8 {[%clk 0:00:05.7]} 61... Ra3+ {[%clk
0:01:39]} 62. Kf4 {[%clk 0:00:06.8]} 62... Ra2 {[%clk 0:01:35.6]} 63. Rb3 {[%clk
0:00:06.6]} 63... Ra4+ {[%clk 0:01:31.9]} 64. Kf5 {[%clk 0:00:05.6]} 64... Kh2
{[%clk 0:01:31.1]} 65. Rb8 {[%clk 0:00:03.4]} 65... g2 {[%clk 0:01:31.6]} 66.
Rh8+ {[%clk 0:00:04.5]} 66... Kg3 {[%clk 0:01:29.5]} 67. Rg8+ {[%clk 0:00:03.8]}
67... Kh3 {[%clk 0:01:28.3]} 68. Ke5 {[%clk 0:00:02.8]} 68... Rg4 {[%clk
0:01:28.5]} 0-1

[Event "*** Titled Tuesday Blitz"]
[Site "Chess.com"]
[Date "2018.12.04"]
[Round "7"]
[White "731291"]
[Black "nubair1198"]
[Result "1-0"]
[WhiteElo "2605"]
[BlackElo "2610"]
[TimeControl "180+2"]
[EndTime "14:39:03 PST"]
[Termination "731291 won by resignation"]

1. Nf3 {[%clk 0:03:01.9]} 1... d5 {[%clk 0:03:00.7]} 2. g3 {[%clk 0:03:02.9]}
2... Nf6 {[%clk 0:02:58.9]} 3. Bg2 {[%clk 0:03:03.6]} 3... c5 {[%clk 0:02:59.9]}
4. O-O {[%clk 0:03:04.2]} 4... Nc6 {[%clk 0:03:01.4]} 5. d4 {[%clk 0:03:03.8]}
5... e6 {[%clk 0:03:00.3]} 6. b3 {[%clk 0:02:48.6]} 6... Be7 {[%clk 0:02:57.9]}
7. Bb2 {[%clk 0:02:48.9]} 7... O-O {[%clk 0:02:59.3]} 8. Nbd2 {[%clk 0:02:48.4]}
8... cxd4 {[%clk 0:02:57]} 9. Nxd4 {[%clk 0:02:48.8]} 9... Nxd4 {[%clk
0:02:58.5]} 10. Bxd4 {[%clk 0:02:50.7]} 10... Bd7 {[%clk 0:02:59.7]} 11. Qc1
{[%clk 0:02:42.4]} 11... Qa5 {[%clk 0:02:55.3]} 12. a3 {[%clk 0:02:39.1]} 12...
Rfc8 {[%clk 0:02:55.1]} 13. c4 {[%clk 0:02:24.7]} 13... e5 {[%clk 0:02:31.6]}
14. Bxe5 {[%clk 0:02:02.1]} 14... dxc4 {[%clk 0:02:33.1]} 15. Bc3 {[%clk
0:01:53.7]} 15... Qa6 {[%clk 0:02:32.1]} 16. bxc4 {[%clk 0:01:51.5]} 16... Bg4
{[%clk 0:02:28.5]} 17. Re1 {[%clk 0:01:47.3]} 17... Rc7 {[%clk 0:02:29.8]} 18.
Qb2 {[%clk 0:01:47.4]} 18... Rac8 {[%clk 0:02:27.9]} 19. h3 {[%clk 0:01:46.3]}
19... Be6 {[%clk 0:02:28.3]} 20. Be5 {[%clk 0:01:39.9]} 20... Rd7 {[%clk
0:02:28.6]} 21. Ne4 {[%clk 0:01:17.5]} 21... Nxe4 {[%clk 0:02:28.1]} 22. Bxe4
{[%clk 0:01:19.4]} 22... f6 {[%clk 0:02:29.5]} 23. Bf4 {[%clk 0:01:15.1]} 23...
Rxc4 {[%clk 0:02:24.6]} 24. Bd3 {[%clk 0:01:13.8]} 24... Bxh3 {[%clk 0:02:26]}
25. Bxc4+ {[%clk 0:01:11]} 25... Qxc4 {[%clk 0:02:26.5]} 26. Qa2 {[%clk
0:01:11.6]} 26... Be6 {[%clk 0:02:22.9]} 27. Qxc4 {[%clk 0:01:11]} 27... Bxc4
{[%clk 0:02:24.8]} 28. Red1 {[%clk 0:01:05.6]} 28... Rxd1+ {[%clk 0:02:07.7]}
29. Rxd1 {[%clk 0:01:07.5]} 29... g5 {[%clk 0:02:08.9]} 30. Be3 {[%clk
0:00:58.6]} 30... Bxe2 {[%clk 0:02:07.4]} 31. Rd7 {[%clk 0:00:56.9]} 31... Bxa3
{[%clk 0:02:08.1]} 32. Rxb7 {[%clk 0:00:57.7]} 32... a5 {[%clk 0:02:05.5]} 33.
Ra7 {[%clk 0:00:56.3]} 33... Bb4 {[%clk 0:02:05.2]} 34. Bd4 {[%clk 0:00:57.7]}
34... f5 {[%clk 0:02:00.9]} 35. Rg7+ {[%clk 0:00:56.8]} 35... Kf8 {[%clk
0:02:02.4]} 36. Rxh7 {[%clk 0:00:55]} 36... a4 {[%clk 0:02:03]} 37. Rb7 {[%clk
0:00:53.5]} 37... Bd6 {[%clk 0:02:01]} 38. Ra7 {[%clk 0:00:52.9]} 38... a3
{[%clk 0:01:58.7]} 39. Be3 {[%clk 0:00:54.3]} 39... Bc4 {[%clk 0:01:58.9]} 40.
Bxg5 {[%clk 0:00:47.4]} 40... a2 {[%clk 0:01:59.5]} 41. Bf4 {[%clk 0:00:46]}
41... Bc5 {[%clk 0:01:04.6]} 42. Ra8+ {[%clk 0:00:46.9]} 42... Ke7 {[%clk
0:01:05.9]} 43. Be5 {[%clk 0:00:48.4]} 43... Ke6 {[%clk 0:01:07.6]} 44. Ba1
{[%clk 0:00:48.8]} 44... Kd5 {[%clk 0:01:07.5]} 45. Rd8+ {[%clk 0:00:44.9]}
45... Ke4 {[%clk 0:01:08.6]} 46. Kg2 {[%clk 0:00:43.2]} 46... Bb6 {[%clk
0:01:02.4]} 47. Rd6 {[%clk 0:00:40]} 47... Bc5 {[%clk 0:01:02.5]} 48. f3+ {[%clk
0:00:28.5]} 48... Ke3 {[%clk 0:01:03.2]} 49. Rc6 {[%clk 0:00:27.6]} 49... Bd4
{[%clk 0:01:03.5]} 50. Rxc4 {[%clk 0:00:28.7]} 50... Bxa1 {[%clk 0:01:03.9]} 51.
Ra4 {[%clk 0:00:29.9]} 51... Bg7 {[%clk 0:00:36]} 52. Rxa2 {[%clk 0:00:30.9]}
52... Kd4 {[%clk 0:00:37.4]} 53. Ra7 {[%clk 0:00:31.5]} 53... Bh6 {[%clk
0:00:36.7]} 54. Re7 {[%clk 0:00:32.2]} 54... Bg5 {[%clk 0:00:37]} 55. Re8 {[%clk
0:00:33.3]} 55... Kd5 {[%clk 0:00:37.3]} 56. Kf1 {[%clk 0:00:31.3]} 56... Kd6
{[%clk 0:00:37.2]} 57. Ke2 {[%clk 0:00:32.7]} 57... Kd7 {[%clk 0:00:38.7]} 58.
Re5 {[%clk 0:00:33.3]} 58... f4 {[%clk 0:00:38.9]} 59. Rxg5 {[%clk 0:00:34]}
59... fxg3 {[%clk 0:00:40.5]} 60. Rxg3 {[%clk 0:00:35.2]} 60... Ke6 {[%clk
0:00:42.4]} 61. Rg4 {[%clk 0:00:36.8]} 61... Kf5 {[%clk 0:00:44.3]} 62. Re4
{[%clk 0:00:38.7]} 1-0

[Event "*** Titled Tuesday Blitz"]
[Site "Chess.com"]
[Date "2018.12.04"]
[Round "7"]
[White "Alopekos"]
[Black "AndrBaryshpolets"]
[Result "0-1"]
[WhiteElo "2497"]
[BlackElo "2581"]
[TimeControl "180+2"]
[EndTime "14:39:10 PST"]
[Termination "AndrBaryshpolets won by resignation"]

1. e4 {[%clk 0:03:01.9]} 1... e6 {[%clk 0:03:00.8]} 2. d4 {[%clk 0:03:02.9]}
2... d5 {[%clk 0:03:02.5]} 3. Nc3 {[%clk 0:03:04.5]} 3... Nf6 {[%clk 0:03:03.9]}
4. e5 {[%clk 0:03:05.8]} 4... Nfd7 {[%clk 0:03:04.9]} 5. Qg4 {[%clk 0:03:07.5]}
5... c5 {[%clk 0:03:00.6]} 6. dxc5 {[%clk 0:03:09.4]} 6... Nc6 {[%clk
0:02:35.7]} 7. Nf3 {[%clk 0:03:09.8]} 7... Ndxe5 {[%clk 0:02:26.5]} 8. Nxe5
{[%clk 0:03:11.7]} 8... Nxe5 {[%clk 0:02:28]} 9. Qg3 {[%clk 0:03:12.1]} 9... Nc6
{[%clk 0:02:29.5]} 10. Nb5 {[%clk 0:03:11.5]} 10... e5 {[%clk 0:02:30.2]} 11.
Nd6+ {[%clk 0:03:12.6]} 11... Bxd6 {[%clk 0:02:29.3]} 12. Qxg7 {[%clk
0:03:14.1]} 12... Kd7 {[%clk 0:01:30.6]} 13. cxd6 {[%clk 0:03:03]} 13... Kxd6
{[%clk 0:01:31.6]} 14. Qxf7 {[%clk 0:02:44.8]} 14... Nd4 {[%clk 0:00:53]} 15.
Bd3 {[%clk 0:02:39.4]} 15... e4 {[%clk 0:00:19.9]} 16. Be3 {[%clk 0:01:10.6]}
16... Rf8 {[%clk 0:00:14]} 17. Qxh7 {[%clk 0:01:07]} 17... Bf5 {[%clk
0:00:04.4]} 18. Qh6+ {[%clk 0:01:01.8]} 18... Ne6 {[%clk 0:00:04.6]} 19. Be2
{[%clk 0:00:53]} 19... Rh8 {[%clk 0:00:05.4]} 20. O-O-O {[%clk 0:00:33.8]} 20...
Rxh6 {[%clk 0:00:06.1]} 21. Bxh6 {[%clk 0:00:35.7]} 21... Kc6 {[%clk 0:00:07.6]}
22. g4 {[%clk 0:00:34.1]} 22... Bh7 {[%clk 0:00:07.4]} 23. Bc4 {[%clk
0:00:32.2]} 23... dxc4 {[%clk 0:00:07]} 24. Rxd8 {[%clk 0:00:33]} 24... Rxd8
{[%clk 0:00:08.9]} 25. Be3 {[%clk 0:00:33.5]} 25... Rg8 {[%clk 0:00:09.4]} 26.
h3 {[%clk 0:00:32.9]} 26... Nc7 {[%clk 0:00:11]} 27. Kd2 {[%clk 0:00:17.8]}
27... Nd5 {[%clk 0:00:11.9]} 28. Bd4 {[%clk 0:00:19.3]} 28... a5 {[%clk
0:00:12.4]} 29. Rg1 {[%clk 0:00:18.5]} 29... Nf4 {[%clk 0:00:10.3]} 30. Rg3
{[%clk 0:00:19.6]} 30... Rd8 {[%clk 0:00:10]} 31. c3 {[%clk 0:00:18]} 31... Ne6
{[%clk 0:00:10.5]} 32. Ke3 {[%clk 0:00:19.2]} 32... Nxd4 {[%clk 0:00:11.7]} 33.
cxd4 {[%clk 0:00:21.1]} 33... Kd5 {[%clk 0:00:12.6]} 34. h4 {[%clk 0:00:21.5]}
34... Rf8 {[%clk 0:00:13.1]} 35. h5 {[%clk 0:00:20.5]} 35... b5 {[%clk
0:00:12.3]} 36. g5 {[%clk 0:00:21.6]} 36... Bf5 {[%clk 0:00:06.5]} 37. g6 {[%clk
0:00:22.3]} 37... Ke6 {[%clk 0:00:07.6]} 38. g7 {[%clk 0:00:17.2]} 38... Rg8
{[%clk 0:00:08]} 39. h6 {[%clk 0:00:18.7]} 39... Kf6 {[%clk 0:00:09.2]} 40. Kf4
{[%clk 0:00:18.9]} 40... b4 {[%clk 0:00:09.7]} 41. Rg5 {[%clk 0:00:19.8]} 41...
Bh7 {[%clk 0:00:09.7]} 42. Rc5 {[%clk 0:00:12.1]} 42... Kg6 {[%clk 0:00:10]} 43.
Rc6+ {[%clk 0:00:12.5]} 43... Kh5 {[%clk 0:00:11.5]} 44. d5 {[%clk 0:00:10]}
44... Rd8 {[%clk 0:00:12.3]} 45. Ke5 {[%clk 0:00:08.1]} 45... Bg8 {[%clk
0:00:11.2]} 46. d6 {[%clk 0:00:05.8]} 46... Kxh6 {[%clk 0:00:11.5]} 47. d7+
{[%clk 0:00:07.1]} 47... Kxg7 {[%clk 0:00:12.7]} 48. Kd6 {[%clk 0:00:09]} 48...
Kf6 {[%clk 0:00:08.8]} 49. Kc7+ {[%clk 0:00:02.4]} 49... Ke7 {[%clk 0:00:09.8]}
50. Rd6 {[%clk 0:00:03.9]} 50... c3 {[%clk 0:00:09.8]} 51. bxc3 {[%clk
0:00:05.2]} 51... bxc3 {[%clk 0:00:11.7]} 52. Rd4 {[%clk 0:00:06.5]} 52... Be6
{[%clk 0:00:11.7]} 0-1

[Event "*** Titled Tuesday Blitz"]
[Site "Chess.com"]
[Date "2018.12.04"]
[Round "7"]
[White "DiogenesSinopeus"]
[Black "MFguimaraes"]
[Result "1-0"]
[WhiteElo "2419"]
[BlackElo "2338"]
[TimeControl "180+2"]
[EndTime "14:39:11 PST"]
[Termination "DiogenesSinopeus won by checkmate"]

1. d4 {[%clk 0:03:01.9]} 1... d5 {[%clk 0:03:00.7]} 2. c4 {[%clk 0:03:01.7]}
2... c6 {[%clk 0:03:01.6]} 3. Nc3 {[%clk 0:03:02.6]} 3... dxc4 {[%clk
0:03:02.8]} 4. e4 {[%clk 0:03:03.3]} 4... b5 {[%clk 0:03:02.8]} 5. a4 {[%clk
0:03:04.7]} 5... b4 {[%clk 0:03:03.5]} 6. Nce2 {[%clk 0:03:05.9]} 6... e5 {[%clk
0:03:03]} 7. Nf3 {[%clk 0:03:03.5]} 7... exd4 {[%clk 0:03:04.4]} 8. Qxd4 {[%clk
0:02:40.8]} 8... c5 {[%clk 0:03:03]} 9. Qxd8+ {[%clk 0:02:26]} 9... Kxd8 {[%clk
0:03:04.9]} 10. Nf4 {[%clk 0:02:20.3]} 10... Ba6 {[%clk 0:02:58.8]} 11. Ne5
{[%clk 0:02:21.5]} 11... Nh6 {[%clk 0:02:55.5]} 12. Nd5 {[%clk 0:02:13.8]} 12...
f6 {[%clk 0:02:56.6]} 13. Nxc4 {[%clk 0:01:53.3]} 13... Nc6 {[%clk 0:02:57.4]}
14. Bxh6 {[%clk 0:00:50.3]} 14... gxh6 {[%clk 0:02:59.3]} 15. O-O-O {[%clk
0:00:41.4]} 15... Nd4 {[%clk 0:02:57.1]} 16. Nxf6 {[%clk 0:00:38.6]} 16... Be7
{[%clk 0:02:47.1]} 17. Nd5 {[%clk 0:00:37]} 17... Rf8 {[%clk 0:02:47.3]} 18. f3
{[%clk 0:00:37]} 18... Bg5+ {[%clk 0:02:36.3]} 19. Kb1 {[%clk 0:00:35.7]} 19...
Bxc4 {[%clk 0:02:36.8]} 20. Bxc4 {[%clk 0:00:36.3]} 20... Kd7 {[%clk 0:02:31.7]}
21. Rd3 {[%clk 0:00:32.3]} 21... Rad8 {[%clk 0:02:28.8]} 22. Rhd1 {[%clk
0:00:29.6]} 22... Bf6 {[%clk 0:02:24.3]} 23. Ne3 {[%clk 0:00:27.1]} 23... Kc6
{[%clk 0:02:20.9]} 24. Nc2 {[%clk 0:00:23.7]} 24... Nxc2 {[%clk 0:02:21.5]} 25.
Kxc2 {[%clk 0:00:22.8]} 25... Rxd3 {[%clk 0:02:22.2]} 26. Rxd3 {[%clk
0:00:23.7]} 26... Bd4 {[%clk 0:02:23.2]} 27. Bd5+ {[%clk 0:00:21.2]} 27... Kc7
{[%clk 0:02:23.3]} 28. Kb3 {[%clk 0:00:21.3]} 28... Rf6 {[%clk 0:02:21.5]} 29.
Rd2 {[%clk 0:00:21.2]} 29... h5 {[%clk 0:02:20.6]} 30. Kc4 {[%clk 0:00:21.6]}
30... Kb6 {[%clk 0:02:18]} 31. b3 {[%clk 0:00:22.4]} 31... Rg6 {[%clk
0:02:16.7]} 32. Re2 {[%clk 0:00:22.7]} 32... Be5 {[%clk 0:02:15.9]} 33. g3
{[%clk 0:00:21.7]} 33... h4 {[%clk 0:02:16.8]} 34. f4 {[%clk 0:00:23.1]} 34...
hxg3 {[%clk 0:02:14.7]} 35. hxg3 {[%clk 0:00:19.4]} 35... Rxg3 {[%clk
0:02:14.6]} 36. Bf7 {[%clk 0:00:12.8]} 36... Bxf4 {[%clk 0:02:11]} 37. e5 {[%clk
0:00:14.7]} 37... Rc3+ {[%clk 0:02:08.4]} 38. Kd5 {[%clk 0:00:15.1]} 38... Rxb3
{[%clk 0:02:09.9]} 39. e6 {[%clk 0:00:11.1]} 39... Rd3+ {[%clk 0:02:06.7]} 40.
Ke4 {[%clk 0:00:07.6]} 40... Rd4+ {[%clk 0:02:07.8]} 41. Kf5 {[%clk 0:00:09.2]}
41... Bd6 {[%clk 0:02:05.7]} 42. e7 {[%clk 0:00:08.8]} 42... Rf4+ {[%clk
0:02:00.5]} 43. Kg5 {[%clk 0:00:04.7]} 43... Rf2 {[%clk 0:01:55.8]} 44. e8=Q
{[%clk 0:00:05.1]} 44... Rxe2 {[%clk 0:01:56]} 45. Qxe2 {[%clk 0:00:07]} 45...
c4 {[%clk 0:01:57.3]} 46. Bxc4 {[%clk 0:00:07.9]} 46... b3 {[%clk 0:01:58.3]}
47. Bxb3 {[%clk 0:00:08.9]} 47... a6 {[%clk 0:01:59.2]} 48. Qc4 {[%clk
0:00:07.2]} 48... Bc5 {[%clk 0:01:59.7]} 49. Kh6 {[%clk 0:00:06.5]} 49... Kb7
{[%clk 0:01:59.6]} 50. Qxc5 {[%clk 0:00:07.3]} 50... a5 {[%clk 0:02:00.6]} 51.
Bd5+ {[%clk 0:00:08.2]} 51... Ka6 {[%clk 0:00:12.8]} 52. Qb5+ {[%clk 0:00:09.2]}
52... Ka7 {[%clk 0:00:12.9]} 53. Qb7# {[%clk 0:00:11.1]} 1-0